bitfinex-derivatives/quotes_BTCF0:USTF0_20250329
["timestamp","ask_amount","ask_price","bid_price","bid_amount"]
[1743241675737,0.0598551,83567.0,83555.0,0.1209671]
[1743241675738,0.01032495,83571.0,83569.0,0.119707]
[1743241675937,0.11783696,83570.0,83569.0,0.119707]
[1743241676243,0.10783696,83570.0,83569.0,0.121027]
[1743241676843,0.10783696,83570.0,83569.0,0.361627]
[1743241677034,0.11259695,83570.0,83569.0,0.361627]
[1743241677348,0.11383696,83570.0,83569.0,0.361627]
[1743241677545,0.00724001,83570.0,83569.0,0.361627]
[1743241678146,0.00724001,83570.0,83569.0,0.664227]
[1743241678354,0.006,83570.0,83569.0,0.664227]
[1743241678543,0.00660001,83570.0,83569.0,0.664227]
[1743241679249,0.006,83570.0,83569.0,0.664227]
[1743241679747,0.2427,83580.0,83569.0,0.664227]
[1743241679748,0.0598357,83594.0,83584.0,0.1196855]
[1743241679934,0.17763329,83585.0,83584.0,0.1209255]
[1743241680649,0.17763329,83585.0,83584.0,0.5873255]
[1743241681237,0.17631329,83585.0,83584.0,0.5873255]
[1743241681433,0.0004,83588.0,83584.0,0.5873255]
[1743241681434,0.0004,83588.0,83587.0,0.1196812]
[1743241681647,0.21089477,83592.0,83591.0,0.1196755]
[1743241681837,0.21213478,83592.0,83591.0,0.7795955]
[1743241682040,0.00124001,83592.0,83591.0,0.7795955]
[1743241682239,0.01054786,83598.0,83597.0,0.1196669]
[1743241682440,0.00124001,83598.0,83597.0,0.1209069]
[1743241682649,0.3612,83620.0,83604.0,0.1196569]
[1743241682944,0.2277,83609.0,83601.0,0.3608]
[1743241683148,0.4804598,83602.0,83601.0,0.00208]
[1743241683341,0.3608,83602.0,83601.0,0.1196612]
[1743241683645,0.119655,83608.0,83607.0,0.1196512]
[1743241683843,0.119655,83608.0,83607.0,0.1216512]
[1743241683844,0.4681,83608.0,83607.0,0.1216512]
[1743241684546,0.3473497,83609.0,83608.0,0.1196512]
[1743241684854,0.3673497,83609.0,83608.0,0.13691366]
[1743241685544,0.3673497,83609.0,83608.0,0.13682549]
[1743241685740,0.2477,83609.0,83608.0,0.13682549]
[1743241685941,0.02,83609.0,83608.0,0.74532549]
[1743241686250,0.02,83609.0,83608.0,0.98112549]
[1743241686450,0.02,83609.0,83608.0,0.9659512]
[1743241687241,0.3726497,83609.0,83608.0,0.9659512]
[1743241687438,0.7334497,83609.0,83608.0,0.002]
[1743241687742,0.9742497,83609.0,83608.0,0.1196512]
[1743241687942,0.9742497,83609.0,83608.0,0.1216512]
[1743241688151,0.9742497,83609.0,83608.0,0.002]
[1743241688345,0.1196598,83602.0,83601.0,0.1196604]
[1743241688547,0.1396598,83602.0,83601.0,0.1216604]
[1743241689546,0.02,83602.0,83601.0,0.1216604]
[1743241689944,0.8346,83609.0,83608.0,0.1196512]
[1743241690147,0.0598292,83603.0,83602.0,0.1196587]
[1743241690355,0.1196612,83603.0,83602.0,0.0618274]
[1743241690541,0.1196612,83603.0,83602.0,0.17948]
[1743241690748,0.1196626,83600.0,83599.0,0.11984069]
[1743241691045,0.1396626,83600.0,83599.0,0.12184069]
[1743241692653,0.1396626,83600.0,83599.0,0.00217949]
[1743241692954,0.5004626,83600.0,83599.0,0.00017949]
[1743241693954,0.1196855,83584.0,83579.0,0.06032459]
[1743241694144,0.1895296,83584.0,83583.0,0.119687]
[1743241694343,0.1895296,83584.0,83583.0,0.121687]
[1743241695549,0.01,83584.0,83583.0,0.119687]
[1743241695751,0.01,83584.0,83583.0,0.121687]
[1743241696453,0.01,83584.0,83583.0,0.353187]
[1743241696646,0.1296855,83584.0,83583.0,0.353187]
[1743241696845,0.1196855,83584.0,83583.0,0.353187]
[1743241697455,0.1196855,83584.0,83583.0,0.002]
[1743241697646,0.1196884,83582.0,83581.0,0.1196892]
[1743241697849,0.1196884,83582.0,83581.0,0.1216892]
[1743241698446,0.1296884,83582.0,83581.0,0.002]
[1743241698749,0.1196913,83580.0,83579.0,0.00047859]
[1743241698951,0.1396913,83580.0,83579.0,0.00047859]
[1743241700758,0.119697,83576.0,83564.0,0.00179504]
[1743241700950,0.1197127,83565.0,83564.0,0.00179504]
[1743241701155,0.1197127,83565.0,83564.0,0.00379504]
[1743241701355,0.1197127,83565.0,83564.0,0.12350924]
[1743241701662,0.1297127,83565.0,83564.0,0.12350924]
[1743241701859,0.01,83565.0,83564.0,0.12350924]
[1743241702054,0.1297127,83565.0,83564.0,0.12350924]
[1743241702760,0.1297127,83565.0,83564.0,0.35880924]
[1743241703347,0.01,83565.0,83564.0,0.36080924]
[1743241703652,0.01,83565.0,83564.0,0.95390924]
[1743241703956,0.1197127,83570.0,83569.0,0.1795553]
[1743241704160,0.4097127,83570.0,83569.0,0.1815553]
[1743241704355,0.6366127,83570.0,83569.0,0.1815553]
[1743241706562,0.6366127,83570.0,83569.0,0.1825553]
[1743241708160,0.6366127,83570.0,83569.0,0.0628526]
[1743241709967,0.8626127,83570.0,83569.0,0.0628526]
[1743241710465,1.2234127,83570.0,83569.0,0.003]
[1743241710665,1.2234127,83570.0,83569.0,0.120707]
[1743241710867,1.2234127,83570.0,83569.0,0.122707]
[1743241711067,0.8626127,83570.0,83569.0,0.122707]
[1743241711364,0.29,83570.0,83569.0,0.122707]
[1743241711566,0.00017949,83573.0,83572.0,0.1197027]
[1743241711759,0.3608,83588.0,83587.0,0.1196812]
[1743241711960,0.44064,83588.0,83587.0,0.00208]
[1743241712265,0.1196941,83578.0,83577.0,0.0598472]
[1743241712461,0.1795386,83580.0,83577.0,0.1815822]
[1743241712770,0.1795386,83580.0,83579.0,0.1196927]
[1743241712959,0.1197042,83571.0,83570.0,0.00017949]
[1743241713164,0.1197042,83571.0,83570.0,0.00221949]
[1743241713367,0.1197042,83571.0,83570.0,0.12192509]
[1743241713666,0.3584042,83571.0,83570.0,0.00221949]
[1743241713869,0.6085042,83571.0,83570.0,0.00221949]
[1743241714064,0.6085042,83571.0,83570.0,0.00017949]
[1743241715262,0.6085042,83571.0,83570.0,0.11988509]
[1743241715459,0.6085042,83571.0,83570.0,0.12196509]
[1743241715866,0.6085042,83571.0,83570.0,0.12296509]
[1743241716565,0.6085042,83571.0,83570.0,0.00325949]
[1743241717766,0.6085042,83571.0,83570.0,0.12296509]
[1743241717967,0.61898934,83571.0,83570.0,0.00325949]
[1743241718665,0.89898934,83571.0,83570.0,0.00325949]
[1743241719564,0.1197127,83565.0,83564.0,0.00179504]
[1743241719769,0.1197142,83564.0,83563.0,0.00047868]
[1743241719967,0.85161421,83564.0,83563.0,0.00047868]
[1743241721163,0.62201421,83564.0,83563.0,0.12019428]
[1743241721373,0.62201421,83564.0,83563.0,0.35509428]
[1743241722157,0.62201421,83564.0,83563.0,0.35809428]
[1743241722769,0.62201421,83564.0,83563.0,0.23837868]
[1743241722770,0.35201421,83564.0,83563.0,0.23837868]
[1743241722965,0.35201421,83564.0,83563.0,0.23697868]
[1743241723171,0.35201421,83564.0,83563.0,0.23845868]
[1743241723570,0.58741421,83564.0,83563.0,0.23845868]
[1743241723867,0.59741421,83564.0,83563.0,0.00347868]
[1743241728372,0.13031421,83564.0,83563.0,0.00347868]
[1743241728579,0.13031421,83564.0,83563.0,0.12319428]
[1743241729070,0.13031421,83564.0,83563.0,0.12459428]
[1743241729573,0.12031421,83564.0,83563.0,0.12459428]
[1743241730159,0.01048514,83571.0,83569.0,0.1197056]
[1743241730160,0.1197067,83570.0,83569.0,0.1197056]
[1743241730371,0.12030671,83570.0,83569.0,0.1197056]
[1743241730569,0.41030671,83570.0,83569.0,0.1211056]
[1743241730872,0.41030671,83570.0,83569.0,0.3719056]
[1743241732172,0.65870671,83570.0,83569.0,0.3719056]
[1743241732577,0.41030671,83570.0,83569.0,0.3719056]
[1743241732766,0.41030671,83570.0,83569.0,0.3729056]
[1743241733675,0.41030671,83570.0,83569.0,0.2532]
[1743241733875,0.41030671,83570.0,83569.0,0.372907]
[1743241734963,0.14162,83583.0,83582.0,0.1196884]
[1743241735373,0.14162,83583.0,83582.0,0.1212484]
[1743241736076,0.14162,83583.0,83582.0,0.6166484]
[1743241737878,0.01077766,83590.0,83586.0,0.1196827]
[1743241738181,0.14202,83604.0,83601.0,0.1196612]
[1743241738182,0.2616774,83604.0,83601.0,0.1196612]
[1743241738376,0.30245292,83604.0,83603.0,0.1196583]
[1743241738569,0.36228192,83604.0,83603.0,0.1196583]
[1743241738880,0.18279552,83604.0,83603.0,0.6119583]
[1743241739178,0.30245242,83604.0,83603.0,0.6119583]
[1743241739375,0.18279552,83604.0,83603.0,0.6135983]
[1743241740275,0.18279552,83604.0,83603.0,0.9743983]
[1743241740467,0.30245242,83604.0,83603.0,0.9743983]
[1743241742278,0.16083242,83604.0,83603.0,0.9743983]
[1743241742479,0.04117552,83604.0,83603.0,0.9743983]
[1743241742669,0.0004,83604.0,83603.0,0.9743983]
[1743241742978,0.0004,83604.0,83603.0,0.9533983]
[1743241744677,0.0004,83604.0,83603.0,1.1835183]
[1743241747372,0.1200569,83604.0,83603.0,0.36244]
[1743241747675,0.1200569,83604.0,83603.0,0.00164]
[1743241747883,0.1200569,83604.0,83596.0,0.2437]
[1743241747884,0.1794978,83601.0,83600.0,0.1196583]
[1743241748177,0.1794978,83601.0,83600.0,0.1212583]
[1743241748680,0.0602285,83604.0,83600.0,0.1212583]
[1743241748681,0.1200577,83604.0,83603.0,0.1196583]
[1743241748973,0.0004,83604.0,83603.0,0.1212183]
[1743241749179,0.0004,83604.0,83603.0,0.6064183]
[1743241750066,0.1200569,83604.0,83603.0,0.48676]
[1743241750271,0.1200569,83604.0,83603.0,0.6064183]
[1743241750774,0.1300569,83604.0,83603.0,0.6064183]
[1743241750979,0.3684569,83604.0,83603.0,0.6064183]
[1743241751179,0.3684569,83604.0,83603.0,0.9672183]
[1743241752975,0.3684569,83604.0,83603.0,0.36236]
[1743241753174,0.3684569,83604.0,83603.0,0.00156]
[1743241753480,0.3684569,83604.0,83596.0,0.3608]
[1743241753481,0.1196669,83597.0,83596.0,0.3608]
[1743241753675,0.1196669,83597.0,83596.0,0.4820268]
[1743241754285,0.3509669,83597.0,83596.0,0.4820268]
[1743241755681,0.3509669,83597.0,83596.0,0.36236]
[1743241756072,0.3609669,83597.0,83596.0,0.36236]
[1743241756279,0.3609669,83597.0,83596.0,0.4820284]
[1743241756678,0.3609669,83597.0,83596.0,0.7147284]
[1743241757193,0.01,83597.0,83596.0,0.7147284]
[1743241757385,0.4853,83608.0,83603.0,0.1196583]
[1743241757577,0.1200569,83604.0,83603.0,0.1212983]
[1743241757885,0.1200569,83604.0,83603.0,0.3570983]
[1743241759781,0.1200569,83604.0,83603.0,0.1212983]
[1743241759986,0.1200569,83604.0,83603.0,0.00164]
[1743241760283,0.1196669,83597.0,83596.0,0.3608]
[1743241760482,0.1196669,83597.0,83596.0,0.3624]
[1743241760780,0.1196669,83597.0,83596.0,0.4820684]
[1743241761485,0.1196669,83597.0,83596.0,0.3624]
[1743241761684,0.7304669,83597.0,83596.0,0.0016]
[1743241763491,0.1196684,83596.0,83591.0,0.21450972]
[1743241763789,0.8441684,83596.0,83595.0,0.00173949]
[1743241764681,0.8441684,83596.0,83595.0,0.00017949]
[1743241765477,0.8441684,83596.0,83595.0,0.00177949]
[1743241765682,0.8441684,83596.0,83595.0,0.00017949]
[1743241765887,0.8441684,83596.0,83595.0,0.00173949]
[1743241767478,0.8441684,83596.0,83595.0,0.00017949]
[1743241767786,0.8441684,83596.0,83595.0,0.00177949]
[1743241768187,0.8441684,83596.0,83595.0,0.12140929]
[1743241768386,0.8441684,83596.0,83595.0,0.37400929]
[1743241769688,0.25,83596.0,83595.0,0.37400929]
[1743241770090,0.3696684,83596.0,83595.0,0.37400929]
[1743241770287,0.25,83596.0,83595.0,0.37400929]
[1743241772296,0.25,83596.0,83595.0,0.73480929]
[1743241773689,0.3655604,83602.0,83601.0,0.1196612]
[1743241773885,0.3755604,83602.0,83601.0,0.1212212]
[1743241774495,0.3755604,83602.0,83601.0,0.3714212]
[1743241774690,0.3755604,83602.0,83601.0,0.00156]
[1743241774898,0.1196684,83596.0,83595.0,0.11984929]
[1743241775089,0.1196684,83596.0,83595.0,0.12140929]
[1743241775891,0.1296684,83596.0,83595.0,0.12140929]
[1743241776596,0.1296684,83596.0,83595.0,0.00173949]
[1743241776801,0.4904684,83596.0,83595.0,0.40782028]
[1743241777705,0.4904684,83596.0,83595.0,0.28815048]
[1743241778288,0.1296684,83596.0,83595.0,0.28815048]
[1743241778497,0.1296684,83596.0,83595.0,0.40782028]
[1743241780894,0.1296684,83596.0,83595.0,0.00173949]
[1743241783089,0.13929651,83596.0,83595.0,0.00173949]
[1743241786707,0.14673699,83596.0,83595.0,0.00173949]
[1743241787328,0.13929651,83596.0,83595.0,0.00173949]
[1743241787876,0.04088157,83596.0,83590.0,0.21503937]
[1743241788023,0.04088157,83596.0,83586.0,0.28641099]
[1743241788024,0.1196812,83587.0,83586.0,0.21712069]
[1743241788216,0.1196884,83582.0,83581.0,0.35733872]
[1743241788418,0.78598473,83582.0,83581.0,0.35793872]
[1743241788820,0.79347788,83582.0,83581.0,0.35793872]
[1743241789325,0.79347788,83582.0,83581.0,0.0006]
[1743241789522,0.1196941,83578.0,83577.0,0.35733872]
[1743241789729,0.42519043,83578.0,83577.0,0.35797872]
[1743241790234,0.42519043,83578.0,83577.0,0.47767432]
[1743241790417,0.65652222,83578.0,83577.0,0.35797872]
[1743241790625,0.66295426,83578.0,83577.0,0.35797872]
[1743241791709,0.89675426,83578.0,83577.0,0.35797872]
[1743241791907,1.14215426,83578.0,83577.0,0.35797872]
[1743241792495,1.14221404,83578.0,83577.0,0.35797872]
[1743241794407,1.14782508,83578.0,83577.0,0.35797872]
[1743241794611,1.14782508,83578.0,83577.0,0.00064]
[1743241794612,1.15739012,83578.0,83577.0,0.00064]
[1743241794814,0.1196999,83574.0,83573.0,0.00017949]
[1743241795010,0.38986495,83574.0,83573.0,0.00017949]
[1743241795508,0.3973581,83574.0,83573.0,0.00017949]
[1743241798505,0.39735487,83574.0,83573.0,0.00017949]
[1743241798711,0.38986172,83574.0,83573.0,0.00017949]
[1743241800106,0.40089742,83574.0,83573.0,0.00017949]
[1743241803913,0.38029991,83574.0,83573.0,0.48068079]
[1743241804117,0.12029991,83574.0,83573.0,0.48128079]
[1743241804316,0.1196999,83574.0,83573.0,0.98568079]
[1743241804822,0.1196972,83576.0,83575.0,0.119697]
[1743241805015,0.12029721,83576.0,83575.0,0.120297]
[1743241805216,0.12029721,83576.0,83575.0,0.624697]
[1743241805715,0.36029721,83576.0,83575.0,0.624697]
[1743241805917,0.12029721,83576.0,83575.0,0.624697]
[1743241806319,0.00060001,83576.0,83575.0,0.624697]
[1743241806516,0.12029701,83576.0,83575.0,0.624697]
[1743241806914,0.00060001,83576.0,83575.0,0.624697]
[1743241807221,0.14162,83581.0,83580.0,0.1196913]
[1743241807426,0.14222001,83581.0,83580.0,0.4810913]
[1743241807814,0.00060001,83581.0,83580.0,0.4810913]
[1743241808018,0.14162,83597.0,83596.0,0.1196684]
[1743241808317,0.0598383,83591.0,83590.0,0.119672]
[1743241808522,0.0605983,83591.0,83590.0,0.120392]
[1743241808719,0.0605983,83591.0,83590.0,0.240065]
[1743241809022,0.14162,83597.0,83596.0,0.1196684]
[1743241809216,0.15266001,83597.0,83596.0,0.1207084]
[1743241809815,0.15266001,83597.0,83596.0,0.3703084]
[1743241810221,0.27232691,83597.0,83596.0,0.3703084]
[1743241810824,0.13070691,83597.0,83596.0,0.3703084]
[1743241811212,0.01104001,83597.0,83596.0,0.3703084]
[1743241811518,0.1196528,83607.0,83603.0,0.1196583]
[1743241811817,0.00108,83604.0,83602.0,0.43388501]
[1743241812014,0.0004,83604.0,83603.0,0.1196583]
[1743241812215,0.00116,83604.0,83603.0,0.3564183]
[1743241812426,0.3008169,83604.0,83603.0,0.23676]
[1743241812726,0.3007369,83604.0,83603.0,0.23676]
[1743241812921,0.0598325,83599.0,83595.0,0.00017949]
[1743241813227,0.4804684,83596.0,83595.0,0.00085949]
[1743241813425,0.6411484,83596.0,83595.0,0.00085949]
[1743241813925,0.0598422,83585.0,83584.0,0.1196784]
[1743241814219,0.00072,83585.0,83584.0,0.1202784]
[1743241814424,0.1795214,83588.0,83587.0,0.1196812]
[1743241814626,0.1895214,83588.0,83587.0,0.1203612]
[1743241814927,0.1903214,83588.0,83587.0,0.1203612]
[1743241815126,0.00017949,83596.0,83587.0,0.36148]
[1743241815330,0.01085949,83596.0,83595.0,0.1206698]
[1743241815519,0.11984789,83596.0,83595.0,0.1213498]
[1743241815721,0.29984789,83596.0,83595.0,0.48998]
[1743241815923,0.30052789,83596.0,83595.0,0.48898]
[1743241816319,0.30052789,83596.0,83595.0,0.6086498]
[1743241816320,0.53292789,83596.0,83595.0,0.6086498]
[1743241817336,0.41325949,83596.0,83595.0,0.6086498]
[1743241817625,0.53292789,83596.0,83595.0,0.6086498]
[1743241817815,0.78422789,83596.0,83595.0,0.48898]
[1743241818231,0.78422789,83596.0,83595.0,0.6086498]
[1743241818531,0.30052789,83596.0,83595.0,0.6086498]
[1743241819628,0.30052789,83596.0,83595.0,0.48898]
[1743241820129,0.30052789,83596.0,83595.0,0.23618]
[1743241820628,0.30052789,83596.0,83595.0,0.3558498]
[1743241820833,0.30052789,83596.0,83595.0,0.23618]
[1743241821020,0.1196894,83585.0,83576.0,0.41196403]
[1743241821323,0.2896894,83585.0,83584.0,0.119679]
[1743241821523,0.3502132,83585.0,83584.0,0.120279]
[1743241822635,0.1802132,83585.0,83584.0,0.120279]
[1743241824331,0.0605238,83585.0,83584.0,0.120279]
[1743241824833,0.0605238,83585.0,83584.0,0.122279]
[1743241825037,0.3608,83603.0,83595.0,0.1196698]
[1743241825233,0.01093949,83596.0,83595.0,0.1203498]
[1743241825535,0.01017949,83596.0,83595.0,0.1203498]
[1743241825934,0.00017949,83596.0,83595.0,0.3552498]
[1743241826631,0.11984789,83596.0,83595.0,0.3552498]
[1743241827435,0.00017949,83596.0,83595.0,0.3552498]
[1743241828534,0.119639,83617.0,83603.0,0.1196583]
[1743241828835,0.00100001,83604.0,83603.0,0.4811383]
[1743241829137,0.0004,83604.0,83603.0,0.4811383]
[1743241829532,0.0004,83604.0,83603.0,0.9770383]
[1743241829732,0.17715571,83613.0,83607.0,0.1196526]
[1743241829934,0.14238,83608.0,83607.0,0.1204126]
[1743241831629,0.00076,83608.0,83607.0,0.1204126]
[1743241831834,0.1196489,83610.0,83609.0,0.1196469]
[1743241832035,0.1196489,83610.0,83609.0,0.5932069]
[1743241832942,0.2555,83617.0,83616.0,0.1196397]
[1743241833132,0.29626,83617.0,83616.0,0.1203997]
[1743241833328,0.4158983,83617.0,83616.0,0.1203997]
[1743241833842,0.29626,83617.0,83616.0,0.6035997]
[1743241834139,0.1603983,83617.0,83616.0,0.6035997]
[1743241834335,0.04076,83617.0,83616.0,0.6035997]
[1743241834939,0.1603983,83617.0,83616.0,0.6035997]
[1743241836044,0.4123983,83617.0,83616.0,0.6035997]
[1743241836939,0.1603983,83617.0,83616.0,0.6035997]
[1743241837244,0.04076,83617.0,83616.0,0.6035997]
[1743241837440,0.1603983,83617.0,83616.0,0.6035997]
[1743241837640,0.4039983,83617.0,83616.0,0.6035997]
[1743241837941,0.04076,83617.0,83616.0,0.6035997]
[1743241838146,0.0004,83620.0,83619.0,0.1196354]
[1743241838346,0.0004,83620.0,83619.0,0.4811954]
[1743241838839,0.0004,83620.0,83619.0,0.1203954]
[1743241839035,0.120034,83620.0,83619.0,0.1203954]
[1743241839235,0.120754,83620.0,83619.0,0.1203954]
[1743241839840,0.364154,83620.0,83619.0,0.1203954]
[1743241840742,0.534154,83620.0,83619.0,0.1203954]
[1743241841533,0.290754,83620.0,83619.0,0.1203954]
[1743241842137,0.17112,83620.0,83619.0,0.1203954]
[1743241842343,0.290754,83620.0,83619.0,0.1203954]
[1743241848142,0.17112,83620.0,83619.0,0.1203954]
[1743241848953,0.00112,83620.0,83619.0,0.1203954]
[1743241850257,0.00112,83620.0,83619.0,0.4811954]
[1743241850555,0.0004,83620.0,83619.0,0.4811954]
[1743241853555,0.00108,83620.0,83619.0,0.9476954]
[1743241854160,0.00108,83620.0,83619.0,1.1084554]
[1743241855960,0.0004,83620.0,83619.0,1.1084554]
[1743241856349,0.00112,83620.0,83619.0,1.1084554]
[1743241860663,0.0004,83620.0,83619.0,1.1084554]
[1743241860965,0.01115042,83627.0,83625.0,0.1196269]
[1743241861150,0.02,83627.0,83626.0,0.9847254]
[1743241861353,0.4923,83635.0,83634.0,0.119614]
[1743241861563,0.6523,83635.0,83634.0,0.120294]
[1743241861864,0.65298,83635.0,83634.0,0.120294]
[1743241862166,0.6639603,83635.0,83634.0,0.120294]
[1743241862362,0.7835729,83635.0,83634.0,0.120294]
[1743241862758,0.65298,83635.0,83634.0,0.120294]
[1743241862958,0.7725926,83635.0,83634.0,0.120294]
[1743241863365,0.65298,83635.0,83634.0,0.120294]
[1743241863557,0.65298,83635.0,83634.0,0.13562397]
[1743241863759,0.00068,83635.0,83634.0,0.13562397]
[1743241863960,0.14162,83641.0,83640.0,0.1196054]
[1743241864268,0.19226,83641.0,83640.0,0.49665537]
[1743241864459,0.14226,83641.0,83640.0,0.49665537]
[1743241864766,0.14162,83641.0,83640.0,0.49665537]
[1743241864955,0.14162,83641.0,83640.0,0.74125537]
[1743241865356,0.14162,83641.0,83640.0,0.74136145]
[1743241866059,0.14162,83641.0,83640.0,1.09347728]
[1743241866251,0.504,83651.0,83646.0,0.1195968]
[1743241866457,0.17807571,83647.0,83646.0,0.29255285]
[1743241867161,0.00092,83647.0,83646.0,0.29255285]
[1743241867362,0.00092,83647.0,83646.0,0.29259402]
[1743241869558,0.18092,83647.0,83646.0,0.2925535]
[1743241869753,0.3005154,83647.0,83646.0,0.1359535]
[1743241869961,0.3005154,83647.0,83646.0,0.0163567]
[1743241870161,0.3005154,83647.0,83646.0,0.1359535]
[1743241870568,0.3005154,83647.0,83646.0,0.1205168]
[1743241871356,0.6613154,83647.0,83646.0,0.00092]
[1743241871562,0.6613154,83647.0,83646.0,0.1195968]
[1743241873466,0.1794007,83645.0,83644.0,0.1195996]
[1743241873772,0.43000071,83645.0,83644.0,0.1195996]
[1743241874167,0.1196068,83640.0,83639.0,0.0598031]
[1743241874369,0.3805268,83640.0,83639.0,0.0607231]
[1743241874675,1.1163268,83640.0,83639.0,0.0607231]
[1743241883077,1.1163268,83640.0,83639.0,0.00092]
[1743241883265,1.4771268,83640.0,83639.0,0.00092]
[1743241883467,0.1196068,83639.0,83638.0,0.00017938]
[1743241883677,0.3602868,83639.0,83638.0,0.00017938]
[1743241883973,0.8515868,83639.0,83638.0,0.00017938]
[1743241884170,0.8515868,83639.0,83638.0,0.00109938]
[1743241884566,0.119624,83627.0,83620.0,0.42867287]
[1743241884766,0.0598218,83614.0,83607.0,9.884e-05]
[1743241884968,0.4804512,83608.0,83607.0,0.00069884]
[1743241885169,0.6512512,83608.0,83607.0,0.00069884]
[1743241885872,0.1708,83608.0,83607.0,0.12035144]
[1743241886071,0.1708,83608.0,83607.0,0.62105144]
[1743241886570,0.0008,83608.0,83607.0,0.62105144]
[1743241886774,0.3608,83611.0,83610.0,0.1196483]
[1743241887073,0.3616,83611.0,83610.0,0.1203283]
[1743241887866,0.3608,83611.0,83610.0,0.1203283]
[1743241888068,0.36156,83611.0,83610.0,0.1203283]
[1743241890777,0.36156,83611.0,83610.0,0.1223283]
[1743241891368,0.3608,83611.0,83610.0,0.1223283]
[1743241891878,0.36156,83611.0,83610.0,0.1223283]
[1743241892064,0.3608,83611.0,83610.0,0.1223283]
[1743241892263,0.00017901,83616.0,83615.0,0.1196412]
[1743241892474,0.36173901,83616.0,83615.0,0.1202412]
[1743241892868,0.36173901,83616.0,83615.0,0.6086412]
[1743241894765,0.3608,83632.0,83631.0,0.1196183]
[1743241894977,0.38148,83632.0,83631.0,0.1202983]
[1743241895369,0.36148,83632.0,83631.0,0.1202983]
[1743241896375,0.6710968,83632.0,83631.0,0.1202983]
[1743241897279,0.36148,83632.0,83631.0,0.1202983]
[1743241898768,0.4810968,83632.0,83631.0,0.1202983]
[1743241899175,0.6710968,83632.0,83631.0,0.1202983]
[1743241899785,1.1362968,83632.0,83631.0,0.1202983]
[1743241901183,1.1362968,83632.0,83631.0,0.1196183]
[1743241901372,1.1362968,83632.0,83631.0,0.1203383]
[1743241901779,1.1362968,83632.0,83631.0,0.1196183]
[1743241906883,1.1362968,83632.0,83629.0,0.0598104]
[1743241907091,0.1196283,83625.0,83624.0,0.1794355]
[1743241907275,0.4811883,83625.0,83624.0,0.1801955]
[1743241907480,0.9637883,83625.0,83624.0,0.1801955]
[1743241908787,0.97520461,83625.0,83624.0,0.1811955]
[1743241909987,1.13520461,83625.0,83624.0,0.1811955]
[1743241910186,1.13520461,83625.0,83624.0,0.4161955]
[1743241911484,1.13520461,83625.0,83624.0,0.4151955]
[1743241911678,0.36156,83625.0,83624.0,0.4151955]
[1743241912392,0.4811869,83625.0,83624.0,0.4151955]
[1743241912588,0.4811869,83625.0,83624.0,0.6611955]
[1743241914796,0.36156,83625.0,83624.0,0.6611955]
[1743241914989,0.36156,83625.0,83624.0,0.6621955]
[1743241916296,0.4811869,83625.0,83624.0,0.6621955]
[1743241917790,0.36156,83625.0,83624.0,0.6621955]
[1743241917996,0.4811869,83625.0,83624.0,0.6621955]
[1743241918392,0.36156,83625.0,83624.0,0.6621955]
[1743241920290,0.4811869,83625.0,83624.0,0.6621955]
[1743241920988,0.6411869,83625.0,83624.0,0.48276]
[1743241921396,0.6411869,83625.0,83624.0,0.23676]
[1743241921593,0.90352442,83625.0,83624.0,0.23676]
[1743241922105,0.8888869,83625.0,83624.0,0.3563883]
[1743241922300,0.8888869,83625.0,83624.0,0.6085883]
[1743241922894,0.76926,83625.0,83624.0,0.6085883]
[1743241923203,0.52156,83625.0,83624.0,0.6085883]
[1743241923405,0.36156,83625.0,83624.0,0.6085883]
[1743241923593,0.36156,83625.0,83624.0,0.6075883]
[1743241924402,0.36156,83625.0,83624.0,0.6085883]
[1743241926599,0.3608,83633.0,83632.0,0.1196168]
[1743241926797,0.36168001,83633.0,83632.0,0.1204968]
[1743241929411,0.52168001,83633.0,83632.0,0.1204968]
[1743241930205,0.64129541,83633.0,83632.0,0.1204968]
[1743241931214,0.52168001,83633.0,83632.0,0.1204968]
[1743241931409,0.52168001,83633.0,83632.0,0.5973968]
[1743241931810,0.36168001,83633.0,83632.0,0.5973968]
[1743241933017,0.55168001,83633.0,83632.0,0.5973968]
[1743241934310,0.67129541,83633.0,83632.0,0.5973968]
[1743241934513,0.68584401,83633.0,83632.0,0.00088]
[1743241935013,0.1196226,83628.0,83627.0,0.21506084]
[1743241935220,0.4048112,83628.0,83627.0,0.21578084]
[1743241935513,0.4048112,83628.0,83627.0,0.21506084]
[1743241935715,0.1196383,83617.0,83616.0,0.3582819]
[1743241935916,0.73559319,83617.0,83616.0,0.3590019]
[1743241936107,0.88559319,83617.0,83616.0,0.3590019]
[1743241936312,0.1196483,83610.0,83609.0,0.42906441]
[1743241936613,0.1196669,83597.0,83596.0,0.2479]
[1743241936820,0.3996669,83597.0,83596.0,0.2485]
[1743241937116,0.4004669,83597.0,83596.0,0.4806]
[1743241937415,0.4004669,83597.0,83596.0,0.1202684]
[1743241938214,0.4004669,83597.0,83596.0,0.1252684]
[1743241938717,0.2919512,83597.0,83596.0,0.6024684]
[1743241938915,0.4116181,83597.0,83596.0,0.6024684]
[1743241939315,0.4116181,83597.0,83596.0,0.0056]
[1743241939711,0.4116181,83597.0,83596.0,0.005]
[1743241941108,0.1196684,83596.0,83595.0,0.00047849]
[1743241941318,0.8397284,83596.0,83595.0,0.00047849]
[1743241941711,0.8397284,83596.0,83595.0,0.12014829]
[1743241941914,0.8397284,83596.0,83595.0,0.12082829]
[1743241943323,0.8397284,83596.0,83595.0,0.00615849]
[1743241943525,0.8397284,83596.0,83595.0,0.12514829]
[1743241943717,0.8397284,83596.0,83595.0,0.12574829]
[1743241944616,0.8397284,83596.0,83595.0,0.37944829]
[1743241944923,0.8397284,83596.0,83595.0,0.37952829]
[1743241946419,1.5613284,83596.0,83595.0,0.37952829]
[1743241947024,1.5613284,83596.0,83595.0,0.61562829]
[1743241948016,0.60156,83596.0,83595.0,0.61562829]
[1743241948214,0.36156,83596.0,83595.0,0.87452829]
[1743241949624,0.52156,83596.0,83595.0,0.87452829]
[1743241950124,0.6412284,83596.0,83595.0,0.87452829]
[1743241950713,0.52156,83596.0,83595.0,0.87452829]
[1743241951122,0.36156,83596.0,83595.0,0.87452829]
[1743241952025,0.36156,83596.0,83595.0,0.88969742]
[1743241953531,0.62156,83596.0,83595.0,0.88969742]
[1743241953732,0.36156,83596.0,83595.0,0.88969742]
[1743241954924,0.36156,83596.0,83595.0,0.88982617]
[1743241956334,0.00076,83596.0,83595.0,0.88982617]
[1743241956728,0.25076,83596.0,83595.0,0.88982617]
[1743241960828,0.00076,83596.0,83595.0,0.88982617]
[1743241963536,0.00076,83596.0,83595.0,0.88985096]
[1743241967138,0.2,83600.0,83599.0,0.1196641]
[1743241967330,0.37084,83600.0,83599.0,0.13566677]
[1743241967536,0.4905026,83600.0,83599.0,0.13566677]